bitfinex/quotes_ETHUSD_20251009
["timestamp","ask_amount","ask_price","bid_price","bid_amount"]
[1759969014142,2.21053096,4523.8,4523.5,0.1104]
[1759969014341,2.21053096,4523.8,4523.5,0.5663]
[1759969014644,2.21053096,4523.8,4523.6,0.4559]
[1759969014843,2.21053096,4523.8,4523.7,0.4559]
[1759969015575,2.22249007,4523.9,4523.7,0.4559]
[1759969016743,0.45528752,4523.9,4523.5,0.1104]
[1759969017075,2.66578134,4523.9,4523.3,0.1104]
[1759969017273,2.22249382,4523.9,4523.3,0.1104]
[1759969017653,2.21063175,4523.6,4523.3,0.1104]
[1759969017852,6.234,4523.5,4523.3,0.1104]
[1759969018271,6.234,4523.5,4523.4,0.4559]
[1759969018578,2.21072644,4523.4,4523.3,0.1104]
[1759969018871,6.234,4523.5,4523.3,0.1104]
[1759969019340,6.234,4523.5,4523.3,0.5663]
[1759969019766,8.44468008,4523.5,4523.3,0.5663]
[1759969021083,6.234,4523.5,4523.3,0.1104]
[1759969021280,6.234,4523.5,4523.4,0.4559]
[1759969021481,0.012,4523.9,4523.4,0.93620458]
[1759969021694,0.046,4523.9,4523.6,3.79944656]
[1759969021985,0.046,4523.9,4523.8,0.1104]
[1759969022477,0.046,4523.9,4523.8,0.5663]
[1759969024084,2.2564821,4523.9,4523.8,0.1104]
[1759969024383,2.21062749,4523.7,4523.5,0.1104]
[1759969025075,2.2106287,4523.6,4523.5,0.1104]
[1759969025456,2.2106287,4523.6,4523.5,0.5663]
[1759969025775,2.2106287,4523.6,4523.5,0.1104]
[1759969026351,2.21070162,4523.5,4523.2,3.79944656]
[1759969026600,2.21070162,4523.5,4523.3,0.1104]
[1759969027284,2.21070162,4523.5,4523.3,0.5663]
[1759969027688,2.21058761,4523.7,4523.3,0.1104]
[1759969028207,2.21072644,4523.4,4523.3,0.1104]
[1759969030369,2.21072644,4523.4,4523.1,0.001]
[1759969030370,2.21077531,4523.3,4523.1,0.001]
[1759969030678,2.299,4523.4,4523.1,0.001]
[1759969030679,8.44482419,4523.2,4523.1,0.001]
[1759969031267,6.234,4523.2,4523.1,0.001]
[1759969031471,6.234,4523.2,4523.1,0.4569]
[1759969031668,8.44482419,4523.2,4523.1,0.4569]
[1759969032403,6.234,4523.2,4523.1,0.4569]
[1759969032599,8.44482419,4523.2,4523.1,0.001]
[1759969036208,8.44482419,4523.2,4523.1,0.4569]
[1759969036416,6.234,4523.3,4523.1,0.91578339]
[1759969036619,2.3,4523.8,4523.2,4.25534656]
[1759969036620,6.234,4523.4,4523.2,4.25534656]
[1759969036824,6.234,4523.4,4523.3,4.25534656]
[1759969041836,6.234,4523.4,4523.3,3.79944656]
[1759969042031,2.21081556,4523.3,4523.1,0.001]
[1759969042225,6.234,4523.4,4523.1,0.001]
[1759969042226,2.21082419,4523.2,4523.1,0.001]
[1759969051966,2.31612419,4523.2,4523.1,0.001]
[1759969052665,2.21082419,4523.2,4523.1,0.001]
[1759969052962,3.38168155,4523.2,4523.1,0.001]
[1759969056853,3.27638155,4523.2,4523.1,0.001]
[1759969057060,2.21082419,4523.2,4523.1,0.45]
[1759969057977,2.21082419,4523.2,4523.1,0.001]
[1759969058155,6.235,4523.2,4523.1,0.001]
[1759969058346,6.235,4523.2,4523.1,0.45]
[1759969060073,8.44582419,4523.2,4523.1,0.45]
[1759969061272,6.235,4523.2,4523.1,0.45]
[1759969061874,6.235,4523.2,4523.1,3.7348753]
[1759969062446,6.235,4523.2,4523.1,0.45]
[1759969062641,8.44582419,4523.2,4523.1,3.2858753]
[1759969068388,6.235,4523.2,4523.1,3.2858753]
[1759969068689,6.235,4523.2,4523.1,3.7489753]
[1759969068867,8.44582419,4523.2,4523.1,3.2858753]
[1759969069387,8.44582419,4523.2,4523.1,3.2466753]
[1759969069585,6.235,4523.2,4523.1,3.2466753]
[1759969070490,8.44582419,4523.2,4523.1,3.2466753]
[1759969071882,6.235,4523.2,4523.1,3.2466753]
[1759969073292,8.44582419,4523.2,4523.1,3.2466753]
[1759969074495,6.235,4523.2,4523.1,3.2466753]
[1759969074899,6.235,4523.2,4523.1,3.7075753]
[1759969077097,6.235,4523.2,4523.1,3.2466753]
[1759969077294,6.235,4523.2,4523.1,3.7075753]
[1759969078993,6.235,4523.2,4523.1,3.72968403]
[1759969079182,6.235,4523.2,4523.1,3.73068403]
[1759969079378,6.237,4523.2,4523.1,3.73068403]
[1759969080303,0.002,4523.2,4523.1,9.83173291]
[1759969080600,0.002,4523.2,4523.1,9.80962418]
[1759969081507,0.002,4523.2,4523.1,9.92002418]
[1759969082806,6.196,4523.7,4523.2,2.21082419]
[1759969082807,0.002,4523.7,4523.2,2.21082419]
[1759969082977,0.002,4523.7,4523.6,5.495504]
[1759969083174,0.002,4524.4,4523.7,2.21057983]
[1759969083377,0.002,4524.4,4524.1,9.12193498]
[1759969083777,0.002,4524.4,4524.1,9.58283498]
[1759969084077,0.002,4524.4,4524.1,8.10953764]
[1759969084979,0.002,4524.4,4524.1,11.39441294]
[1759969085705,0.002,4524.4,4524.1,13.31441294]
[1759969086019,0.002,4524.4,4524.2,2.21033552]
[1759969086322,0.002,4524.4,4524.2,2.69333887]
[1759969086538,0.002,4524.4,4524.2,6.59942405]
[1759969086676,0.038,4524.9,4524.2,6.59942405]
[1759969086677,0.01,4524.9,4524.3,4.76388667]
[1759969087007,0.1095,4527.2,4524.3,4.76388667]
[1759969087008,0.01,4525.9,4524.9,2.20999359]
[1759969087207,0.01,4525.9,4525.8,8.88970471]
[1759969087385,0.01,4525.9,4525.8,5.60482941]
[1759969087585,0.01,4525.9,4525.8,6.06572941]
[1759969088213,9.199,4527.3,4526.4,2.20924878]
[1759969088418,9.199,4527.3,4526.8,3.5162753]
[1759969088712,6.234,4527.4,4526.8,6.63541537]
[1759969088911,6.234,4527.4,4526.8,7.09631537]
[1759969089211,6.234,4527.4,4526.8,4.88724937]
[1759969089512,6.234,4527.4,4526.8,7.09631537]
[1759969091315,6.234,4527.4,4526.8,4.88724937]
[1759969091683,6.234,4527.4,4526.8,7.09631537]
[1759969092893,6.232,4527.6,4526.8,7.09631537]
[1759969093491,8.44068418,4527.6,4526.8,7.09631537]
[1759969093693,6.232,4527.6,4526.8,7.09631537]
[1759969094017,8.44068116,4527.6,4526.8,7.09631537]
[1759969094319,2.20873199,4527.5,4526.8,4.88724937]
[1759969094494,8.44068429,4527.6,4526.8,4.88724937]
[1759969094702,8.44068429,4527.6,4526.8,4.44141204]
[1759969095200,8.44068429,4527.6,4526.8,4.4635027]
[1759969095402,6.232,4527.6,4526.8,6.6725687]
[1759969095606,6.232,4527.6,4526.8,6.65047804]
[1759969096205,6.232,4527.6,4526.9,2.20901632]
[1759969096403,6.232,4527.6,4527.5,3.2848753]
[1759969096601,0.01,4527.9,4527.6,2.20865234]
[1759969096803,0.01,4527.9,4527.8,3.3952753]
[1759969097432,0.01,4527.9,4527.8,3.8561753]
[1759969098235,0.01,4527.9,4527.8,6.08683919]
[1759969098413,0.01,4527.9,4527.8,7.22278957]
[1759969100113,0.01,4527.9,4527.8,5.01421146]
[1759969100316,0.01,4527.9,4527.8,0.1104]
[1759969100721,0.012,4527.9,4527.8,0.5713]
[1759969101040,2.22052934,4527.9,4527.8,0.5713]
[1759969101237,2.22052934,4527.9,4527.8,0.1104]
[1759969102438,8.45252934,4527.9,4527.8,0.1104]
[1759969103344,6.244,4527.9,4527.8,3.3952753]
[1759969103532,8.45252934,4527.9,4527.8,3.3952753]
[1759969103942,8.45252934,4527.9,4527.8,0.1104]
[1759969104415,6.244,4527.9,4527.8,0.1104]
[1759969104845,6.244,4527.9,4527.8,0.5598]
[1759969105040,8.45252934,4527.9,4527.8,0.1104]
[1759969105548,6.244,4527.9,4527.8,0.1104]
[1759969106031,8.45252934,4527.9,4527.8,0.1104]
[1759969106237,2.20858805,4527.8,4527.5,3.3952753]
[1759969106643,6.244,4527.9,4527.6,0.4494]
[1759969106866,6.244,4527.9,4527.7,0.4494]
[1759969107019,2.20857811,4527.8,4527.7,0.4494]
[1759969107213,2.20857811,4527.8,4527.5,3.3952753]
[1759969107413,2.20857811,4527.8,4527.7,0.4494]
[1759969107835,8.45254357,4527.9,4527.7,0.4494]
[1759969108425,2.20857811,4527.8,4527.7,0.4494]
[1759969109121,2.20857811,4527.8,4527.5,3.3952753]
[1759969109122,2.20867567,4527.6,4527.5,3.3952753]
[1759969109620,2.20867567,4527.6,4527.5,3.8446753]
[1759969111450,2.20866212,4527.7,4527.5,3.8446753]
[1759969111655,2.20866212,4527.7,4527.6,0.4494]
[1759969113527,2.20867567,4527.6,4527.5,3.3952753]
[1759969113726,2.20867567,4527.6,4527.5,0.5598]
[1759969113946,2.20867567,4527.6,4527.5,3.8446753]
[1759969114377,2.20863788,4527.7,4527.5,3.8446753]
[1759969114652,2.20863788,4527.7,4527.6,0.4494]
[1759969115155,6.244,4527.9,4527.6,0.4494]
[1759969115555,2.20859667,4527.8,4527.7,0.4494]
[1759969115756,6.244,4527.9,4527.8,0.4494]
[1759969116144,2.22052934,4527.9,4527.8,0.5598]
[1759969116348,6.241,4527.9,4527.8,0.5598]
[1759969118252,6.44701673,4527.9,4527.8,0.5598]
[1759969119960,8.65554607,4527.9,4527.8,0.5598]
[1759969120162,0.21801673,4527.9,4527.8,0.5598]
[1759969120460,8.65754607,4527.9,4527.8,3.3952753]
[1759969120668,8.65754607,4527.9,4527.8,3.8446753]
[1759969120958,8.65754607,4527.9,4527.8,0.1104]
[1759969124544,9.74414554,4527.9,4527.8,0.1104]
[1759969124728,2.20885443,4527.3,4526.8,0.68343977]
[1759969125040,6.231,4527.2,4526.9,0.4544]
[1759969125241,6.231,4527.2,4527.0,0.4544]
[1759969125447,6.231,4527.2,4527.1,0.13248919]
[1759969125657,6.231,4527.2,4527.1,0.58688919]
[1759969125858,0.012,4527.9,4527.1,1.31421703]
[1759969126041,0.04,4527.9,4527.6,3.79393729]
[1759969126239,0.04,4527.9,4527.8,0.1104]
[1759969126470,0.24608715,4527.9,4527.8,0.1104]
[1759969126770,0.24608599,4527.9,4527.8,0.5648]
[1759969126966,0.012,4527.9,4527.8,3.21146047]
[1759969128666,0.012,4527.9,4527.8,1.00288236]
[1759969128869,0.012,4527.9,4527.8,0.5648]
[1759969129055,0.012,4527.9,4527.8,0.1104]
[1759969129256,0.012,4527.9,4527.8,0.5648]
[1759969132650,0.012,4527.9,4527.8,0.58688578]
[1759969132856,0.012,4527.9,4527.8,0.5648]
[1759969133268,0.012,4527.9,4527.8,1.02696738]
[1759969133471,0.012,4527.9,4527.8,1.04905316]
[1759969133948,0.012,4527.9,4527.8,3.22643127]
[1759969138768,0.012,4527.9,4527.8,1.01785316]
[1759969138970,0.012,4527.9,4527.8,3.22643127]
[1759969140086,0.012,4527.9,4527.8,7.02036856]
[1759969140384,0.012,4527.9,4527.8,13.22928278]
[1759969140581,0.012,4527.9,4527.8,15.14928278]
[1759969140790,0.012,4527.9,4527.8,15.78288278]
[1759969141365,0.012,4527.9,4527.8,16.58288278]
[1759969141969,0.012,4527.9,4527.8,16.61408278]
[1759969142270,0.002,4528.4,4528.3,4.76193425]
[1759969142476,0.002,4528.4,4528.3,17.95566814]
[1759969142793,0.002,4528.4,4528.3,18.38426814]
[1759969143801,0.002,4528.4,4528.3,9.85526814]
[1759969143983,0.002,4528.4,4528.3,9.94366446]
[1759969144187,0.002,4528.4,4528.3,5.31733085]
[1759969144367,0.002,4528.4,4528.3,1.92]
[1759969144774,0.002,4528.4,4527.9,3.81602258]
[1759969144972,0.002,4528.4,4528.3,0.4286]
[1759969145499,2.21030669,4528.4,4527.9,4.24462258]
[1759969145671,2.20836693,4528.3,4528.0,0.4286]
[1759969145868,0.002,4528.4,4528.1,0.4286]
[1759969146072,2.20833815,4528.3,4528.1,0.4286]
[1759969146282,2.21029057,4528.4,4528.2,0.4286]
[1759969146598,2.21029057,4528.4,4528.3,0.4286]
[1759969146784,0.002,4528.4,4528.3,0.4286]
[1759969147184,0.002,4528.4,4527.9,3.81602258]
[1759969147185,2.21029698,4528.4,4527.9,4.24462258]
[1759969147369,2.21029698,4528.4,4527.9,3.81602258]
[1759969147570,0.002,4528.4,4527.9,3.81602258]
[1759969150101,0.002,4528.4,4528.0,0.4286]
[1759969150286,0.002,4528.4,4528.1,0.02208431]
[1759969151199,0.002,4528.4,4528.0,0.0220848]
[1759969151569,0.002,4528.4,4528.3,3.79393729]
[1759969152098,0.002,4528.4,4528.3,4.22253729]
[1759969152491,0.002,4528.4,4528.3,3.79393729]
[1759969154172,0.002,4528.4,4528.3,3.90433729]
[1759969154581,0.002,4528.4,4528.3,3.92642063]
[1759969155707,0.002,4528.4,4528.3,7.15475128]
[1759969156408,0.002,4528.4,4528.3,2.31873425]
[1759969157000,0.002,4528.4,4528.3,2.74733425]
[1759969157391,0.002,4528.4,4528.3,4.68941759]
[1759969157592,0.002,4528.4,4528.3,4.66733425]
[1759969157885,0.002,4528.4,4528.3,5.46733425]
[1759969158189,0.002,4528.4,4528.3,7.89323371]
[1759969158914,0.002,4528.4,4528.3,10.19023371]
[1759969159213,0.012,4528.9,4528.8,2.20809044]
[1759969159442,0.012,4528.9,4528.8,12.36750863]
[1759969159614,0.012,4528.9,4528.8,12.77402773]
[1759969159788,0.012,4528.9,4528.8,16.19224646]
[1759969160597,0.012,4528.9,4528.8,16.82584646]
[1759969168631,0.012,4528.9,4528.8,16.19124646]
[1759969170338,0.012,4528.9,4528.8,16.82484646]
[1759969172317,0.01,4529.9,4529.8,2.20760298]
[1759969172503,0.01,4529.9,4529.8,6.46514357]
[1759969172703,0.01,4529.9,4529.8,7.02666755]
[1759969176434,0.01,4530.9,4529.8,9.91687176]
[1759969176619,0.01,4530.9,4530.8,6.00105303]
[1759969176800,0.01,4530.9,4530.8,12.23305303]
[1759969177006,0.01,4530.9,4530.8,14.15107695]
[1759969177504,0.01,4530.9,4530.8,16.07107695]
[1759969180915,0.01,4530.9,4530.8,16.70467695]
[1759969183847,0.01,4530.9,4530.8,19.97638332]
[1759969184539,0.01,4530.9,4530.8,16.18244603]
[1759969186549,0.01,4530.9,4530.8,16.29204603]
[1759969187945,0.01,4530.9,4530.8,18.58404603]
[1759969188555,0.01,4531.9,4530.8,18.58404603]
[1759969188556,0.01,4531.9,4530.9,2.5536]
[1759969188759,0.01,4531.9,4531.8,8.85964145]
[1759969188959,0.01,4531.9,4531.8,15.08764145]
[1759969189325,2.279,4532.7,4532.4,2.20633655]
[1759969189648,2.279,4532.7,4532.6,3.27170637]
[1759969189831,2.279,4532.7,4532.6,3.73150637]
[1759969190665,2.279,4532.7,4532.6,3.27170637]
[1759969190864,2.279,4532.7,4532.6,3.73150637]
[1759969191759,2.279,4532.7,4532.6,3.27170637]
[1759969192059,2.279,4532.7,4532.3,2.20637238]
[1759969192060,2.279,4532.7,4532.4,0.4598]
[1759969192359,2.279,4532.7,4532.6,3.27170637]
[1759969193560,2.3802,4532.7,4532.3,0.44697284]
[1759969193731,0.1012,4532.6,4532.0,2.20649633]
[1759969194128,0.1012,4532.6,4532.0,5.4782027]
[1759969194959,0.1012,4532.6,4532.0,3.27170637]
[1759969195160,0.1012,4532.6,4532.0,5.47823161]
[1759969195965,0.1012,4532.6,4532.0,5.92995511]
[1759969196149,0.1012,4532.6,4532.0,3.72342987]
[1759969196347,0.1012,4532.6,4532.0,5.92992615]
[1759969196664,0.1012,4532.6,4532.1,2.20644412]
[1759969196858,0.1012,4532.6,4532.2,2.20641989]
[1759969197060,0.1012,4532.6,4532.2,2.22848422]
[1759969197640,0.1012,4532.6,4532.3,2.20636316]
[1759969197836,2.279,4532.7,4532.3,3.27170637]
[1759969197837,0.1012,4532.5,4532.3,3.27170637]
[1759969198166,2.279,4532.7,4532.3,3.27170637]
[1759969198589,0.1012,4532.5,4532.3,3.27170637]
[1759969199561,0.1012,4532.5,4532.3,3.38130637]
[1759969199766,0.0248,4532.6,4532.3,3.38130637]
[1759969200062,0.126,4532.6,4532.3,3.38130637]
[1759969200268,0.1012,4532.5,4532.3,3.38130637]
[1759969200474,0.0248,4532.6,4532.3,3.38130637]
[1759969200636,6.3262,4532.5,4532.3,0.1096]
[1759969200838,0.1012,4532.4,4532.3,0.1096]
[1759969203539,6.225,4532.5,4532.3,0.1096]
[1759969203961,6.225,4532.5,4532.4,3.27170637]
[1759969206168,6.3262,4532.5,4532.4,3.27170637]
[1759969209050,6.225,4532.5,4532.4,3.27170637]
[1759969209248,6.3262,4532.5,4532.4,3.27170637]
[1759969209448,6.225,4532.5,4532.4,5.47804296]
[1759969209953,6.225,4532.5,4532.4,5.94694296]
[1759969210977,6.225,4532.5,4532.4,5.47804296]
[1759969211365,6.225,4532.5,4532.4,5.94694296]
[1759969213591,0.0248,4532.6,4532.5,2.20628792]
[1759969213808,0.0248,4532.6,4532.5,0.60056287]
[1759969214086,0.0248,4532.6,4532.5,0.5785]
[1759969214450,0.0248,4532.6,4532.5,0.1096]
[1759969215902,0.0248,4532.6,4532.5,3.38130637]
[1759969216495,0.0248,4532.6,4532.5,3.85020637]
[1759969219415,0.0248,4532.6,4532.5,6.88508816]
[1759969220722,0.0248,4532.6,4532.5,4.67880024]
[1759969221015,0.0248,4532.6,4532.5,3.85020637]
[1759969222082,0.0248,4532.6,4532.5,6.05649429]
[1759969222272,0.195,4533.3,4532.5,6.05649429]
[1759969222273,0.195,4533.3,4532.5,3.27170637]
[1759969222680,2.40094688,4533.3,4532.5,3.27170637]
[1759969222981,0.002,4532.7,4532.5,3.27170637]
[1759969224812,2.15809766,4532.9,4532.5,3.27170637]
[1759969224996,0.099,4532.8,4532.3,0.001]
[1759969225203,4.60014399,4532.8,4532.3,0.001]
[1759969225388,2.8540144,4532.8,4532.3,0.001]
[1759969225592,0.099,4532.7,4532.3,0.001]
[1759969225914,2.20633659,4532.4,4532.3,0.001]
[1759969226121,11.38633659,4532.4,4532.3,0.001]
[1759969226281,11.48533659,4532.4,4532.3,0.001]
[1759969226482,12.49481019,4532.4,4532.3,0.001]
[1759969228408,2.30533659,4532.4,4532.3,0.001]
[1759969228583,10.82733659,4532.4,4532.3,0.001]
[1759969231107,10.72833659,4532.4,4532.3,0.001]
[1759969231420,10.82733659,4532.4,4532.3,0.001]
[1759969232287,10.93693659,4532.4,4532.3,0.001]
[1759969238200,10.83793659,4532.4,4532.3,0.001]
[1759969238702,8.6316,4532.4,4532.3,0.001]
[1759969238897,8.522,4532.4,4532.3,0.448]
[1759969239632,8.522,4532.4,4532.3,0.001]
[1759969241131,2.20629931,4532.5,4532.3,0.001]
[1759969241430,6.226,4532.4,4532.3,0.001]
[1759969242507,6.226,4532.4,4532.3,0.5576]
[1759969242706,6.226,4532.4,4532.3,1.18441939]
[1759969242902,6.226,4532.4,4532.3,3.41286851]
[1759969243908,6.226,4532.4,4532.3,1.20648324]
[1759969244229,6.226,4532.4,4532.3,0.73741939]
[1759969245045,8.43233659,4532.4,4532.3,0.1106]
[1759969245204,6.325,4532.4,4532.3,0.1106]
[1759969245404,8.43233659,4532.4,4532.3,0.1106]
[1759969246033,8.53133659,4532.4,4532.3,0.001]
[1759969246556,9.16493659,4532.4,4532.3,0.001]
[1759969251733,11.08493659,4532.4,4532.3,0.001]
[1759969251962,11.29060244,4532.4,4532.3,0.001]
[1759969252270,15.5509926,4532.4,4532.3,0.001]
[1759969254033,2.2069209,4531.2,4531.1,0.01]
[1759969254263,19.9099209,4531.2,4531.1,0.01]
[1759969254668,20.0102209,4531.2,4531.1,0.01]
[1759969258842,22.5638209,4531.2,4531.1,1e-08]
[1759969260654,22.5638209,4531.2,4531.1,0.00100001]
[1759969261182,22.5688209,4531.2,4531.1,0.00100001]
[1759969262647,21.9352209,4531.2,4531.1,0.00100001]
[1759969263782,13.6869209,4531.2,4531.1,0.00100001]
[1759969263978,20.0245209,4531.2,4531.1,0.00100001]
[1759969264281,20.3474209,4531.2,4531.1,0.00100001]
[1759969268881,20.0245209,4531.2,4531.1,0.00100001]
[1759969269483,20.1235209,4531.2,4531.1,0.00100001]
[1759969272663,0.1096,4531.2,4531.1,0.00100001]
[1759969272874,2.296,4531.5,4531.1,0.43320001]
[1759969273068,3.405,4531.4,4531.1,0.87697222]
[1759969273264,3.405,4531.4,4531.2,0.4322]
[1759969273593,3.405,4531.4,4531.1,0.44477222]
[1759969273887,5.61185806,4531.4,4531.1,0.44477222]
[1759969274897,3.405,4531.4,4531.1,0.44477222]
[1759969275998,5.61182507,4531.4,4531.1,0.44477222]
[1759969277093,3.405,4531.4,4531.1,0.44477222]
[1759969277280,3.405,4531.4,4531.1,0.87697222]
[1759969277454,2.2069209,4531.2,4531.1,0.00100001]
[1759969277654,8.4339209,4531.2,4531.1,0.00100001]
[1759969277890,8.5342209,4531.2,4531.1,0.00100001]
[1759969285191,8.4339209,4531.2,4531.1,0.00100001]
[1759969285722,8.5342209,4531.2,4531.1,0.00100001]
[1759969286080,8.4339209,4531.2,4531.1,0.00100001]
[1759969286821,0.1116,4531.4,4531.1,0.00100001]
[1759969287010,6.226,4531.3,4531.2,3.89612209]
[1759969287317,6.226,4531.3,4531.2,0.5745]
[1759969289305,6.226,4531.3,4531.2,0.1096]
[1759969290095,6.226,4531.3,4531.2,0.5745]
[1759969290505,6.226,4531.3,4531.2,2.7814209]
[1759969290704,6.226,4531.3,4531.2,1.13559906]
[1759969291334,6.226,4531.3,4531.2,1.11352986]
[1759969292833,6.226,4531.3,4531.2,0.64862986]
[1759969293144,6.226,4531.3,4531.2,1.11352986]
[1759969295261,0.002,4531.4,4531.2,1.11352986]
[1759969295262,0.002,4531.4,4531.3,2.2068722]
[1759969295406,0.002,4531.4,4531.3,3.64333885]
[1759969296021,0.002,4531.4,4531.3,5.56333885]
[1759969296225,0.002,4531.4,4531.3,6.19693885]
[1759969296845,0.002,4531.4,4531.3,6.99693885]
[1759969302559,0.002,4531.8,4531.7,2.8402774]
[1759969302858,0.002,4531.8,4531.7,17.19846626]
[1759969303153,0.002,4531.8,4531.7,17.62179949]
[1759969303564,0.002,4531.8,4531.7,17.71012593]
[1759969303753,0.002,4531.8,4531.7,17.62179949]
[1759969303933,0.002,4531.8,4531.7,19.80420745]
[1759969305827,0.002,4531.8,4531.7,26.34522939]
[1759969307571,0.002,4531.8,4531.7,14.0387073]
[1759969307862,0.002,4531.8,4531.7,22.5577073]
[1759969308039,0.002,4531.8,4531.7,14.0387073]
[1759969308236,0.002,4531.8,4531.7,20.2627073]
[1759969308629,0.002,4531.8,4531.7,10.13459633]
[1759969308825,0.002,4531.8,4531.7,7.95218837]
[1759969309244,0.002,4531.8,4531.7,14.17618837]
[1759969310466,0.002,4531.8,4531.7,17.44669934]
[1759969313893,0.002,4531.8,4531.7,14.17618837]
[1759969314870,0.002,4531.8,4531.7,17.44669934]
[1759969315195,0.002,4531.8,4531.7,19.41204377]
[1759969315667,0.002,4531.8,4531.7,13.18804377]
[1759969315867,0.002,4531.8,4531.7,16.1405328]
[1759969316470,0.002,4531.8,4531.7,7.50678837]
[1759969316689,0.002,4531.8,4531.7,13.72978837]
[1759969316882,0.002,4531.8,4531.7,3.38011097]
[1759969317078,0.002,4531.8,4531.7,5.58678837]
[1759969319108,0.002,4531.8,4531.7,3.38011097]
[1759969324322,0.002,4531.8,4531.7,5.58678837]
[1759969325240,0.002,4531.8,4531.7,6.05808837]
[1759969326145,0.002,4531.8,4531.7,9.32859934]
[1759969326462,0.002,4531.8,4531.7,7.21162278]
[1759969326657,0.002,4531.8,4531.7,10.48213375]
[1759969326830,0.002,4531.8,4531.7,18.62613375]
[1759969327841,0.002,4531.8,4531.7,19.42613375]
[1759969331519,0.002,4531.8,4531.7,20.05973375]
[1759969333070,0.002,4531.9,4531.7,20.05973375]
[1759969333272,0.02,4532.3,4532.2,11.3010559]
[1759969333446,0.01,4533.9,4533.6,2.20571191]
[1759969333761,0.01,4533.9,4533.8,3.27051097]
[1759969334125,0.01,4533.9,4533.8,0.1096]
[1759969335565,2.31550665,4533.9,4533.8,0.1096]
[1759969336417,2.31550665,4533.9,4532.8,1.92]
[1759969336418,2.20576728,4533.6,4532.8,1.92]
[1759969336621,2.20570877,4533.7,4533.4,0.1096]
[1759969336840,0.101,4533.8,4533.4,0.1096]
[1759969337050,2.30671674,4533.7,4533.4,0.1096]
[1759969337220,0.101,4533.7,4533.4,0.1096]
[1759969337422,2.20580125,4533.5,4533.4,0.1096]
[1759969337626,2.30680125,4533.5,4533.4,0.1096]
[1759969337850,0.101,4533.5,4533.4,0.1096]
[1759969338032,0.2157,4533.9,4533.4,0.1096]
[1759969338232,2.3066558,4533.8,4533.4,0.1096]
[1759969338558,2.30666291,4533.8,4533.4,0.1096]
[1759969338856,2.20575902,4533.6,4533.4,0.1096]
[1759969339053,2.30666823,4533.8,4533.4,0.1096]
[1759969339272,2.20579498,4533.6,4533.4,0.1096]
[1759969339551,2.20580125,4533.5,4533.4,0.1096]
[1759969339751,2.20580125,4533.5,4532.5,1.92]
[1759969339752,2.20589943,4533.3,4532.5,1.92]
[1759969339968,2.20589943,4533.3,4533.0,0.1096]
[1759969340172,2.30689943,4533.3,4533.0,0.1096]
[1759969340536,7.46285559,4533.4,4533.0,0.1096]
[1759969340737,2.20599589,4533.1,4533.0,0.1096]
[1759969340970,2.20607401,4533.0,4532.2,2.20642693]
[1759969341275,2.20609444,4532.9,4532.7,0.1096]
[1759969341437,2.20614189,4532.8,4532.7,0.1096]
[1759969341638,2.20642673,4532.3,4531.4,3.27051097]
[1759969341868,0.101,4532.2,4532.1,0.1096]
[1759969342074,6.222,4532.4,4532.1,0.1096]
[1759969342474,2.20643396,4532.2,4532.1,0.1096]
[1759969342975,2.30743396,4532.2,4532.1,0.1096]
[1759969344156,8.517,4532.4,4532.1,0.1096]
[1759969344555,2.20639548,4532.3,4532.1,0.1096]
[1759969344757,2.20638527,4532.3,4532.1,0.1096]
[1759969345075,0.101,4532.2,4532.1,0.1096]
[1759969345271,2.20638527,4532.3,4532.1,0.1096]
[1759969345988,11.475,4533.2,4532.2,0.6788]
[1759969346195,8.42899589,4533.1,4532.3,3.72891097]
[1759969346346,8.42899589,4533.1,4532.4,0.1096]
[1759969346674,2.20613199,4532.9,4532.4,0.1096]
[1759969346979,8.42899589,4533.1,4532.4,0.1096]
[1759969346980,6.223,4533.1,4532.4,0.1096]
[1759969347179,0.26319682,4533.0,4532.4,0.1096]
[1759969347385,2.46924138,4533.0,4532.4,0.1096]
[1759969347984,2.20617445,4532.8,4532.4,0.1096]
[1759969349090,2.20610743,4532.9,4532.4,0.1096]
[1759969349489,2.20610253,4532.9,4532.4,0.1096]
[1759969349987,2.20614348,4532.8,4532.4,0.1096]
[1759969350165,2.20610082,4532.9,4532.4,0.568]
[1759969350485,8.42899808,4533.1,4532.4,0.568]
[1759969350486,2.20615516,4532.8,4532.4,0.568]
[1759969350687,2.20605641,4533.0,4532.4,0.1096]
[1759969351107,2.20620139,4532.7,4532.4,0.1096]
[1759969351292,6.223,4532.6,4532.4,0.1096]
[1759969358892,6.324,4532.6,4532.4,0.1096]
[1759969359206,6.223,4532.6,4532.4,0.1096]
[1759969363777,6.223,4532.6,4532.5,0.584]
[1759969364184,6.223,4532.6,4532.5,0.1096]
[1759969365791,6.223,4532.6,4532.5,0.584]
[1759969365992,6.223,4532.6,4532.5,0.1096]
[1759969368611,8.42923924,4532.6,4532.5,0.1096]
[1759969371217,7.3875388,4532.6,4532.3,0.001]
[1759969371417,2.20633659,4532.4,4532.3,0.001]
[1759969372927,6.225,4532.6,4532.3,0.001]
[1759969373295,0.002,4532.6,4532.4,4.26012384]
[1759969373535,0.002,4532.6,4532.5,1.24391278]
[1759969373722,0.194,4532.6,4532.5,0.584]
[1759969374493,0.194,4532.6,4532.5,0.1096]
[1759969378499,0.194,4532.6,4532.5,0.5383]
[1759969378859,0.002,4532.6,4532.5,0.5383]
[1759969379135,0.002,4532.6,4532.5,0.1096]
[1759969379341,0.002,4532.6,4532.5,0.5383]
[1759969379530,0.002,4532.6,4532.5,0.97080238]
[1759969383836,0.002,4532.6,4532.5,0.54210238]